[Event "XIII Mediterranean Championship 2023"]
[Site "Castell-Platja d Aro"]
[Date "2023.11.10"]
[Round "8.8"]
[White "Banos, Oscar"]
[Black "Lazaro Pujol, Abel"]
[Result "0-1"]
[ECO "B14"]
[WhiteElo "2188"]
[BlackElo "2289"]
[Annotator "RC"]
[PlyCount "78"]
[EventDate "2023.10.26"]
[EventType "swiss"]
[EventCountry "ESP"]
[SourceTitle "playchess.com"]
[Source "ChessBase"]
[SourceQuality "1"]
[TimeControl "5400+30"]

1. c4 {[%emt 0:00:05]} e6 {[%emt 0:02:00]} 2. Nf3 {[%emt 0:00:21]} d5 {[%emt 0:00:49]} 3. e3 {[%emt 0:00:07]} Nf6 {[%emt 0:00:58]} 4. d4 {[%emt 0:01:00]} c5 {[%emt 0:02:10]} 5. a3 {[%emt 0:00:47]} cxd4 {[%emt 0:06:12]} 6. exd4 {[%emt 0:00:38]} Be7 {[%emt 0:00:36]} 7. Nc3 {[%emt 0:01:34]} Nc6 {[%emt 0:01:43]} 8. c5 {[%emt 0:00:46]} Ne4 {[%emt 0:00:06]} 9. Bb5 {[%emt 0:08:55]} O-O {[%emt 0:01:18]} 10. O-O {[%emt 0:00:18]} Bd7 {[%emt 0:09:42]} 11. Bd3 {[%emt 0:05:28]} f5 {[%emt 0:05:29]} 12. Ne2 {[%emt 0:03:52]} a5 {[%emt 0:03:59]} 13. Ne1 {[%emt 0:06:23]} b6 {[%emt 0:17:30]} 14. cxb6 {[%emt 0:06:14]} Qxb6 {[%emt 0:00:16]} 15. Nc2 {[%emt 0:00:13]} Bf6 {[%emt 0:06:17]} 16. Be3 {[%emt 0:11:05]} a4 {[%emt 0:04:43]} 17. Rb1 {[%emt 0:08:24]} Qd8 {[%emt 0:05:15]} 18. Bb5 {[%emt 0:10:29]} Nd6 {[%emt 0:06:13]} 19. Bd3 {[%emt 0:00:40]} g5 {[%emt 0:00:42]} 20. f3 {[%emt 0:00:25]} f4 {[%emt 0:01:09]} 21. Bf2 {[%emt 0:01:28]} Rb8 {[%emt 0:02:22]} 22. Nc3 {[%emt 0:03:55]} Qa5 {[%emt 0:01:52]} 23. Re1 {[%emt 0:01:13]} Kh8 {[%emt 0:01:17]} 24. Ne2 {[%emt 0:06:42]} Bg7 {[%emt 0:02:52]} 25. Na1 {[%emt 0:01:18]} Nf5 {[%emt 0:01:01]} 26. b4 {[%emt 0:00:24]} axb3 {[%emt 0:03:18]} 27. Nxb3 {[%emt 0:00:54]} Qxa3 {[%emt 0:01:24]} 28. Bxf5 {[%emt 0:03:09]} exf5 {[%emt 0:03:27]} 29. Nc3 {[%emt 0:01:46]} Qd6 {[%emt 0:00:57]} 30. Nc5 {[%emt 0:00:30]} Rxb1 {[%emt 0:00:29]} 31. Nxb1 {[%emt 0:00:31]} g4 {[%emt 0:00:54]} 32. Nxd7 {[%emt 0:03:02]} Qxd7 {[%emt 0:00:34]} 33. Kf1 {[%emt 0:00:53]} h5 {[%emt 0:02:53]} 34. Nc3 {[%emt 0:01:05]} h4 {[%emt 0:01:32]} 35. fxg4 {[%emt 0:06:10]} fxg4 {[%emt 0:00:22]} 36. Bxh4 {[%emt 0:00:59]} Bxd4 {[%emt 0:01:06]} 37. Qb3 {[%emt 0:01:19]} g3 {[%emt 0:01:07]} 38. h3 {[%emt 0:01:19]} f3 {[%emt 0:01:22]} 39. Bxg3 {[%emt 0:00:48]} Qg7 {[%emt 0:00:26]} 0-1

[Event "XIII Mediterranean Championship 2023"]
[Site "Castell-Platja d Aro"]
[Date "2023.11.10"]
[Round "8.9"]
[White "Ventura Bolet, Alexandre"]
[Black "Alsina Leal, Daniel"]
[Result "1-0"]
[ECO "A07"]
[WhiteElo "2238"]
[BlackElo "2531"]
[Annotator "RC"]
[PlyCount "103"]
[EventDate "2023.10.26"]
[EventType "swiss"]
[EventCountry "ESP"]
[SourceTitle "playchess.com"]
[Source "ChessBase"]
[SourceQuality "1"]
[TimeControl "5400+30"]

1. Nf3 {[%emt 0:00:03]} d5 {[%emt 0:01:21]} 2. g3 {[%emt 0:00:10]} Nf6 {[%emt 0:02:23]} 3. Bg2 {[%emt 0:00:15]} e6 {[%emt 0:00:12]} 4. O-O {[%emt 0:00:24]} Be7 {[%emt 1:28:34]} 5. d3 {[%emt 0:02:54]} O-O {[%emt 0:00:00]} 6. Nbd2 {[%emt 0:01:01]} Nc6 {[%emt 0:00:00]} 7. e4 {[%emt 0:01:37]} dxe4 {[%emt 0:00:00]} 8. dxe4 {[%emt 0:01:21]} e5 {[%emt 0:00:00]} 9. c3 {[%emt 0:01:20]} a5 {[%emt 0:00:00]} 10. Qc2 {[%emt 0:06:10]} Bc5 {[%emt 0:03:00]} 11. Nc4 {[%emt 0:05:48]} Qe7 {[%emt 0:00:00]} 12. Ne3 {[%emt 1:15:27]} g6 {[%emt 0:00:00]} 13. Re1 {[%emt 0:00:00]} Nd8 {[%emt 0:00:00]} 14. Nd5 {[%emt 0:00:00]} Nxd5 {[%emt 0:00:00]} 15. exd5 {[%emt 0:00:00]} f6 {[%emt 0:00:00]} 16. Be3 {[%emt 0:00:00]} Nf7 {[%emt 0:00:00]} 17. Nd2 {[%emt 0:02:30]} f5 {[%emt 0:00:00]} 18. Bxc5 {[%emt 0:00:00]} Qxc5 {[%emt 0:00:00]} 19. c4 {[%emt 0:00:00]} a4 {[%emt 0:00:00]} 20. Qc3 {[%emt 0:00:00]} Qa5 {[%emt 0:00:00]} 21. b4 {[%emt 0:00:00]} axb3 {[%emt 0:00:00]} 22. Qxa5 {[%emt 0:00:00]} Rxa5 {[%emt 0:00:00]} 23. axb3 {[%emt 0:00:00]} Rxa1 {[%emt 0:00:00]} 24. Rxa1 {[%emt 0:00:00]} Kg7 {[%emt 0:00:00]} 25. f4 {[%emt 0:00:00]} e4 {[%emt 0:00:00]} 26. Nf1 {[%emt 0:00:00]} c6 {[%emt 0:00:00]} 27. Ne3 {[%emt 0:00:00]} cxd5 {[%emt 0:00:00]} 28. Nxd5 {[%emt 0:00:00]} Be6 {[%emt 0:00:00]} 29. Nc7 {[%emt 0:00:00]} Nd8 {[%emt 0:00:00]} 30. Ra8 {[%emt 0:00:00]} Rf7 {[%emt 0:00:00]} 31. Ne8+ {[%emt 0:00:00]} Kf8 {[%emt 0:00:20]} 32. Rxd8 {[%emt 0:00:00]} Ke7 {[%emt 0:00:09]} 33. Ra8 {[%emt 0:00:00]} Kd7 {[%emt 0:02:10]} 34. c5 {[%emt 0:08:30]} Rf8 {[%emt 0:02:23]} 35. Bf1 {[%emt 0:00:00]} Bxb3 {[%emt 0:01:59]} 36. Bb5+ {[%emt 0:00:00]} Ke7 {[%emt 0:00:13]} 37. Nc7 {[%emt 0:01:30]} Rxa8 {[%emt 0:05:36]} 38. Nxa8 {[%emt 0:00:00]} Bc2 {[%emt 0:00:39]} 39. Kf2 {[%emt 0:00:00]} Bb3 {[%emt 0:00:12]} 40. Ke3 {[%emt 0:00:00]} Ba2 {[%emt 0:00:25]} 41. Kd4 {[%emt 0:00:00]} Kd8 {[%emt 0:00:27]} 42. Nb6 {[%emt 0:00:00]} Bb3 {[%emt 0:00:22]} 43. Bc4 {[%emt 0:00:00]} Bxc4 {[%emt 0:00:23]} 44. Nxc4 {[%emt 0:00:00]} Kc7 {[%emt 0:00:14]} 45. Ne3 {[%emt 0:00:00]} Kc6 {[%emt 0:00:26]} 46. g4 {[%emt 0:00:00]} fxg4 {[%emt 0:00:21]} 47. Nxg4 {[%emt 0:00:00]} Kb5 {[%emt 0:00:17]} 48. Ne3 {[%emt 0:00:00]} Kc6 {[%emt 0:01:48]} 49. Nd5 {[%emt 0:00:00]} h6 {[%emt 0:00:29]} 50. h3 {[%emt 0:00:00]} h5 {[%emt 0:00:35]} 51. h4 {[%emt 0:00:00]} Kd7 {[%emt 0:00:22]} 52. Kxe4 {[%emt 0:07:30]} 1-0

[Event "XIII Mediterranean Championship 2023"]
[Site "Castell-Platja d Aro"]
[Date "2023.11.10"]
[Round "8.10"]
[White "Vehi Bach, Victor Manuel"]
[Black "Garcia Ramos, Daniel"]
[Result "1-0"]
[ECO "B12"]
[WhiteElo "2216"]
[BlackElo "2455"]
[Annotator "RC"]
[PlyCount "141"]
[EventDate "2023.10.26"]
[EventType "swiss"]
[EventCountry "ESP"]
[SourceTitle "playchess.com"]
[Source "ChessBase"]
[SourceQuality "1"]
[TimeControl "5400+30"]

1. e4 {[%emt 0:00:03]} c6 {[%emt 0:03:43]} 2. d4 {[%emt 0:00:10]} d5 {[%emt 0:00:16]} 3. e5 {[%emt 0:00:11]} Bf5 {[%emt 0:00:09]} 4. Nd2 {[%emt 0:00:43]} e6 {[%emt 0:00:06]} 5. Nb3 {[%emt 0:00:07]} Nd7 {[%emt 0:00:16]} 6. Nf3 {[%emt 0:00:23]} h6 {[%emt 0:00:13]} 7. Be2 {[%emt 0:00:37]} a6 {[%emt 0:02:54]} 8. O-O {[%emt 0:03:22]} c5 {[%emt 0:02:40]} 9. Nxc5 {[%emt 0:09:39]} Bxc5 {[%emt 0:00:37]} 10. dxc5 {[%emt 0:00:05]} Nxc5 {[%emt 0:00:09]} 11. Nd4 {[%emt 0:02:07]} Ne7 {[%emt 0:00:25]} 12. Be3 {[%emt 0:06:24]} Nd7 {[%emt 0:07:36]} 13. f4 {[%emt 0:03:37]} O-O {[%emt 0:00:19]} 14. a4 {[%emt 0:11:06]} Be4 {[%emt 0:04:04]} 15. a5 {[%emt 0:10:20]} Nc6 {[%emt 0:09:38]} 16. Qd2 {[%emt 0:02:23]} Qe7 {[%emt 0:05:47]} 17. Bd3 {[%emt 0:14:15]} Bxd3 {[%emt 0:23:46]} 18. cxd3 {[%emt 0:00:34]} f6 {[%emt 0:00:47]} 19. exf6 {[%emt 0:02:38]} Qxf6 {[%emt 0:00:47]} 20. Nxc6 {[%emt 0:11:56]} bxc6 {[%emt 0:00:09]} 21. d4 {[%emt 0:00:05]} Qf5 {[%emt 0:10:10]} 22. Rac1 {[%emt 0:00:43]} Rfc8 {[%emt 0:04:03]} 23. Rc2 {[%emt 0:02:30]} Rab8 {[%emt 0:01:40]} 24. Rfc1 {[%emt 0:00:55]} Rb3 {[%emt 0:03:36]} 25. Rxc6 {[%emt 0:06:01]} Rxc6 {[%emt 0:00:30]} 26. Rxc6 {[%emt 0:00:07]} Nf6 {[%emt 0:01:18]} 27. Qc1 {[%emt 0:05:35]} Ne4 {[%emt 0:12:01]} 28. Rc2 {[%emt 0:00:25]} Qg4 {[%emt 0:00:49]} 29. h3 {[%emt 0:02:34]} Qh5 {[%emt 0:00:38]} 30. Kh2 {[%emt 0:01:06]} Kh7 {[%emt 0:02:23]} 31. Qe1 {[%emt 0:01:08]} Qg6 {[%emt 0:00:36]} 32. Re2 {[%emt 0:00:26]} Rd3 {[%emt 0:00:41]} 33. Bf2 {[%emt 0:01:12]} Qf7 {[%emt 0:01:04]} 34. Be3 {[%emt 0:00:07]} Rb3 {[%emt 0:00:14]} 35. Bc1 {[%emt 0:01:27]} Kg8 {[%emt 0:01:05]} 36. Kg1 {[%emt 0:01:17]} Qc7 {[%emt 0:00:42]} 37. Re3 {[%emt 0:00:28]} Rb5 {[%emt 0:00:50]} 38. Ra3 {[%emt 0:00:02]} Qc4 {[%emt 0:00:43]} 39. Qd1 {[%emt 0:00:23]} Rb8 {[%emt 0:00:32]} 40. Kh2 {[%emt 0:00:17]} Rc8 {[%emt 0:00:58]} 41. Be3 {[%emt 0:00:17]} Qb5 {[%emt 0:00:34]} 42. Rb3 {[%emt 0:00:57]} Qe8 {[%emt 0:00:41]} 43. Rb7 {[%emt 0:00:43]} h5 {[%emt 0:00:21]} 44. Rb6 {[%emt 0:00:56]} Qg6 {[%emt 0:00:32]} 45. Qf3 {[%emt 0:00:36]} Rc2 {[%emt 0:00:58]} 46. f5 {[%emt 0:00:23]} Qxf5 {[%emt 0:00:20]} 47. Qxf5 {[%emt 0:00:05]} exf5 {[%emt 0:00:04]} 48. h4 {[%emt 0:00:17]} Nf6 {[%emt 0:00:39]} 49. Bf4 {[%emt 0:00:12]} Ng4+ {[%emt 0:00:18]} 50. Kg3 {[%emt 0:00:06]} Rc4 {[%emt 0:01:18]} 51. Be5 {[%emt 0:00:52]} Nxe5 {[%emt 0:00:42]} 52. dxe5 {[%emt 0:00:08]} Kf7 {[%emt 0:00:34]} 53. Rxa6 {[%emt 0:00:09]} Rg4+ {[%emt 0:00:30]} 54. Kf3 {[%emt 0:00:07]} Rxh4 {[%emt 0:00:07]} 55. Rb6 {[%emt 0:00:14]} Ra4 {[%emt 0:00:06]} 56. a6 {[%emt 0:00:14]} g5 {[%emt 0:00:06]} 57. b4 {[%emt 0:00:44]} h4 {[%emt 0:00:16]} 58. Rf6+ {[%emt 0:05:02]} Ke7 {[%emt 0:00:32]} 59. b5 {[%emt 0:00:00]} g4+ {[%emt 0:00:20]} 60. Ke2 {[%emt 0:00:00]} f4 {[%emt 0:00:34]} 61. Rh6 {[%emt 0:00:00]} h3 {[%emt 0:00:31]} 62. gxh3 {[%emt 0:00:00]} f3+ {[%emt 0:00:17]} 63. Kf2 {[%emt 0:00:23]} Ra2+ {[%emt 0:01:46]} 64. Kg3 {[%emt 0:00:01]} f2 {[%emt 0:00:41]} 65. Rf6 {[%emt 0:00:16]} gxh3 {[%emt 0:00:04]} 66. Rxf2 {[%emt 0:00:37]} Ra3+ {[%emt 0:00:06]} 67. Kh2 {[%emt 0:00:24]} d4 {[%emt 0:00:25]} 68. Rb2 {[%emt 0:02:21]} d3 {[%emt 0:01:19]} 69. b6 {[%emt 0:00:02]} Rc3 {[%emt 0:00:48]} 70. Rb4 {[%emt 0:00:36]} d2 {[%emt 0:00:36]} 71. Rd4 {[%emt 0:00:12]} 1-0

[Event "XIII Mediterranean Championship 2023"]
[Site "Castell-Platja d Aro"]
[Date "2023.11.10"]
[Round "8.11"]
[White "Masague Artero, Guerau"]
[Black "Hernando Rodrigo, Julio Antonio"]
[Result "1/2-1/2"]
[ECO "D37"]
[WhiteElo "2305"]
[BlackElo "2202"]
[Annotator "RC"]
[PlyCount "135"]
[EventDate "2023.10.26"]
[EventType "swiss"]
[EventCountry "ESP"]
[SourceTitle "playchess.com"]
[Source "ChessBase"]
[SourceQuality "1"]
[TimeControl "5400+30"]

1. d4 {[%emt 0:00:32]} d5 {[%emt 0:09:54]} 2. c4 {[%emt 0:00:26]} e6 {[%emt 0:00:30]} 3. Nc3 {[%emt 0:00:33]} h6 {[%emt 0:00:42]} 4. Nf3 {[%emt 0:02:23]} Nf6 {[%emt 0:00:10]} 5. g3 {[%emt 0:02:20]} Bd6 {[%emt 0:00:14]} 6. a3 {[%emt 0:07:41]} b6 {[%emt 0:15:30]} 7. cxd5 {[%emt 0:00:42]} exd5 {[%emt 0:00:12]} 8. Bg2 {[%emt 0:00:21]} c6 {[%emt 0:00:55]} 9. O-O {[%emt 0:02:12]} O-O {[%emt 0:03:13]} 10. Bf4 {[%emt 0:00:19]} Bxf4 {[%emt 0:04:17]} 11. gxf4 {[%emt 0:03:01]} Ne4 {[%emt 0:01:35]} 12. Rc1 {[%emt 0:05:30]} Nd6 {[%emt 0:06:14]} 13. Ne5 {[%emt 0:02:46]} Bb7 {[%emt 0:01:21]} 14. e3 {[%emt 0:05:01]} Nd7 {[%emt 0:05:07]} 15. Ne2 {[%emt 0:06:25]} Nxe5 {[%emt 0:00:53]} 16. fxe5 {[%emt 0:02:00]} Nc4 {[%emt 0:03:42]} 17. Rc2 {[%emt 0:02:40]} f6 {[%emt 0:02:33]} 18. Nf4 {[%emt 0:00:52]} Qe8 {[%emt 0:11:11]} 19. exf6 {[%emt 0:13:51]} Rxf6 {[%emt 0:00:11]} 20. Qg4 {[%emt 0:00:05]} Bc8 {[%emt 0:04:37]} 21. Qh5 {[%emt 0:08:23]} Bf5 {[%emt 0:04:05]} 22. Rc3 {[%emt 0:10:16]} Bg6 {[%emt 0:10:07]} 23. Nxg6 {[%emt 0:04:38]} Rxg6 {[%emt 0:01:08]} 24. Kh1 {[%emt 0:02:24]} Nd2 {[%emt 0:07:58]} 25. Rxc6 {[%emt 0:07:39]} Rxc6 {[%emt 0:00:18]} 26. Qxd5+ {[%emt 0:00:13]} Re6 {[%emt 0:01:15]} 27. Rd1 {[%emt 0:00:24]} Rd8 {[%emt 0:01:36]} 28. Qa2 {[%emt 0:00:01]} Rxd4 {[%emt 0:02:22]} 29. exd4 {[%emt 0:04:40]} Kh8 {[%emt 0:00:02]} 30. h3 {[%emt 0:02:53]} Re1+ {[%emt 0:01:46]} 31. Rxe1 {[%emt 0:00:04]} Qxe1+ {[%emt 0:02:22]} 32. Kh2 {[%emt 0:00:01]} Qxf2 {[%emt 0:00:00]} 33. Qd5 {[%emt 0:00:42]} Nf1+ {[%emt 0:00:00]} 34. Kh1 {[%emt 0:00:00]} Ng3+ {[%emt 0:00:00]} 35. Kh2 {[%emt 0:00:00]} Qf4 {[%emt 0:00:51]} 36. Qe5 {[%emt 0:01:50]} Ne2+ {[%emt 0:00:39]} 37. Qxf4 {[%emt 0:00:46]} Nxf4 {[%emt 0:00:03]} 38. Bf1 {[%emt 0:00:35]} g5 {[%emt 0:00:32]} 39. Kg3 {[%emt 0:00:28]} Kg7 {[%emt 0:00:04]} 40. Kf3 {[%emt 0:01:42]} Kf6 {[%emt 0:00:07]} 41. Ke4 {[%emt 0:00:15]} Ke6 {[%emt 0:01:40]} 42. Bc4+ {[%emt 0:01:11]} Kd6 {[%emt 0:00:20]} 43. h4 {[%emt 0:00:11]} Ne6 {[%emt 0:00:40]} 44. hxg5 {[%emt 0:01:41]} Nxg5+ {[%emt 0:00:24]} 45. Kf4 {[%emt 0:00:03]} Ne6+ {[%emt 0:00:11]} 46. Kf5 {[%emt 0:02:18]} Nxd4+ {[%emt 0:00:19]} 47. Kg6 {[%emt 0:00:00]} Kc5 {[%emt 0:00:20]} 48. Bf1 {[%emt 0:00:48]} Nc2 {[%emt 0:00:52]} 49. Kxh6 {[%emt 0:00:29]} Ne3 {[%emt 0:00:08]} 50. Be2 {[%emt 0:00:34]} Nc4 {[%emt 0:00:15]} 51. b4+ {[%emt 0:00:39]} Kd4 {[%emt 0:00:05]} 52. a4 {[%emt 0:00:06]} Kc3 {[%emt 0:00:31]} 53. b5 {[%emt 0:00:53]} Kb4 {[%emt 0:00:43]} 54. Kg5 {[%emt 0:00:07]} Nb2 {[%emt 0:00:11]} 55. Kf4 {[%emt 0:00:39]} Nxa4 {[%emt 0:00:07]} 56. Ke3 {[%emt 0:00:06]} Nc3 {[%emt 0:00:06]} 57. Bh5 {[%emt 0:00:11]} Kxb5 {[%emt 0:00:58]} 58. Kd3 {[%emt 0:00:09]} Kb4 {[%emt 0:03:24]} 59. Kc2 Kc4 {[%emt 0:00:00]} 60. Bf7+ {[%emt 0:00:29]} Nd5 {[%emt 0:00:00]} 61. Kb2 {[%emt 0:00:09]} b5 {[%emt 0:00:00]} 62. Ka3 {[%emt 0:00:01]} a5 {[%emt 0:00:00]} 63. Bg8 {[%emt 0:00:03]} Kc5 {[%emt 0:00:00]} 64. Bf7 {[%emt 0:00:44]} Kd4 {[%emt 0:00:00]} 65. Be8 {[%emt 0:00:21]} Nc7 {[%emt 0:00:00]} 66. Bxb5 {[%emt 0:00:04]} Nxb5+ {[%emt 0:00:00]} 67. Ka4 {[%emt 0:00:01]} Nc3+ {[%emt 0:00:00]} 68. Kxa5 {[%emt 0:00:01]} 1/2-1/2

[Event "XIII Mediterranean Championship 2023"]
[Site "Castell-Platja d Aro"]
[Date "2023.11.10"]
[Round "8.12"]
[White "Valle Luis, Leo"]
[Black "Martinez Pla, Xavier"]
[Result "1/2-1/2"]
[ECO "B47"]
[WhiteElo "2216"]
[BlackElo "2263"]
[Annotator "RC"]
[PlyCount "97"]
[EventDate "2023.10.26"]
[EventType "swiss"]
[EventCountry "ESP"]
[SourceTitle "playchess.com"]
[Source "ChessBase"]
[SourceQuality "1"]
[TimeControl "5400+30"]

1. e4 {[%emt 1:31:00]} c5 {[%emt 0:05:09]} 2. Nf3 {[%emt 0:00:00]} e6 {[%emt 0:00:11]} 3. d4 {[%emt 0:00:00]} cxd4 {[%emt 0:00:08]} 4. Nxd4 {[%emt 0:00:00]} Nc6 {[%emt 0:00:06]} 5. Nc3 {[%emt 0:00:00]} Qc7 {[%emt 0:00:10]} 6. g4 {[%emt 0:00:00]} a6 {[%emt 0:01:31]} 7. Be3 {[%emt 0:00:00]} b5 {[%emt 0:04:46]} 8. Nxc6 {[%emt 0:00:00]} Qxc6 {[%emt 0:00:56]} 9. Qd2 {[%emt 0:00:00]} Nf6 {[%emt 0:02:59]} 10. f3 {[%emt 0:00:00]} d6 {[%emt 0:05:31]} 11. a4 {[%emt 0:00:00]} bxa4 {[%emt 0:08:06]} 12. Rxa4 {[%emt 0:00:00]} Be7 {[%emt 0:06:33]} 13. Be2 {[%emt 0:00:00]} O-O {[%emt 0:01:27]} 14. O-O {[%emt 0:00:00]} Rd8 {[%emt 0:05:06]} 15. Rfa1 {[%emt 0:00:00]} d5 {[%emt 0:13:03]} 16. exd5 {[%emt 0:00:00]} Nxd5 {[%emt 0:02:42]} 17. Nxd5 {[%emt 0:00:00]} Rxd5 {[%emt 0:08:18]} 18. Bd3 {[%emt 0:00:00]} Bb7 {[%emt 0:09:23]} 19. Qe2 {[%emt 0:00:00]} Rdd8 {[%emt 0:08:33]} 20. Be4 {[%emt 0:00:00]} Qc7 {[%emt 0:04:07]} 21. Rc4 {[%emt 0:00:00]} Qb8 {[%emt 0:01:35]} 22. Bf4 {[%emt 0:00:00]} Bd6 {[%emt 0:02:01]} 23. Bxd6 {[%emt 0:04:21]} Qxd6 {[%emt 0:00:49]} 24. Bxb7 {[%emt 0:02:03]} Qb6+ {[%emt 0:00:55]} 25. Kg2 {[%emt 0:00:12]} Qxb7 {[%emt 0:00:10]} 26. b3 {[%emt 0:00:10]} Rd5 {[%emt 0:03:01]} 27. Rd1 {[%emt 0:01:27]} Rad8 {[%emt 0:01:26]} 28. Rxd5 {[%emt 0:00:10]} Rxd5 {[%emt 0:00:34]} 29. Re4 {[%emt 0:00:22]} h5 {[%emt 0:02:04]} 30. h3 {[%emt 0:00:16]} Qb6 {[%emt 0:01:54]} 31. Re5 {[%emt 0:02:07]} hxg4 {[%emt 0:01:13]} 32. hxg4 {[%emt 0:00:08]} Rd4 {[%emt 0:00:45]} 33. Re4 {[%emt 0:01:17]} Rd6 {[%emt 0:00:15]} 34. Qc4 {[%emt 0:01:07]} Qd8 {[%emt 0:00:37]} 35. Re2 {[%emt 0:00:11]} Rd1 {[%emt 0:01:10]} 36. Qf4 {[%emt 0:00:24]} a5 {[%emt 0:00:41]} 37. Rf2 {[%emt 0:01:50]} Qb6 {[%emt 0:00:33]} 38. Qe4 {[%emt 0:00:32]} Rd4 {[%emt 0:00:24]} 39. Qa8+ {[%emt 0:00:12]} Rd8 {[%emt 0:00:04]} 40. Qe4 {[%emt 0:00:06]} Qc5 {[%emt 0:00:54]} 41. Re2 {[%emt 0:00:51]} Qc3 {[%emt 0:00:30]} 42. Qf4 {[%emt 0:00:26]} Qc5 {[%emt 0:00:37]} 43. Qe4 {[%emt 0:00:12]} Qc7 {[%emt 0:00:30]} 44. Rf2 {[%emt 0:00:10]} Qb6 {[%emt 0:00:23]} 45. Re2 {[%emt 0:00:08]} Rd4 {[%emt 0:00:38]} 46. Qa8+ {[%emt 0:00:08]} Rd8 {[%emt 0:00:18]} 47. Qe4 {[%emt 0:00:07]} Rd4 {[%emt 0:00:13]} 48. Qa8+ {[%emt 0:00:28]} Rd8 {[%emt 0:00:09]} 49. Qe4 {[%emt 0:00:13]} 1/2-1/2

[Event "XIII Mediterranean Championship 2023"]
[Site "Castell-Platja d Aro"]
[Date "2023.11.10"]
[Round "8.13"]
[White "Lever, Erwan"]
[Black "Garcia Jimenez, Francisco Javier"]
[Result "1-0"]
[ECO "E18"]
[WhiteElo "2184"]
[BlackElo "2249"]
[Annotator "RC"]
[PlyCount "77"]
[EventDate "2023.10.26"]
[EventType "swiss"]
[EventCountry "ESP"]
[SourceTitle "playchess.com"]
[Source "ChessBase"]
[SourceQuality "1"]
[TimeControl "5400+30"]

1. d4 {[%emt 0:00:03]} Nf6 {[%emt 0:08:44]} 2. c4 {[%emt 0:00:08]} e6 {[%emt 0:00:03]} 3. g3 {[%emt 0:00:05]} d5 {[%emt 0:00:24]} 4. Nf3 {[%emt 0:00:08]} Be7 {[%emt 0:01:45]} 5. Bg2 {[%emt 0:00:07]} O-O {[%emt 0:00:07]} 6. Nc3 {[%emt 0:00:04]} b6 {[%emt 0:00:28]} 7. cxd5 {[%emt 0:00:07]} exd5 {[%emt 0:00:34]} 8. O-O {[%emt 0:00:07]} Bb7 {[%emt 0:00:23]} 9. Bf4 {[%emt 0:00:08]} c6 {[%emt 0:00:32]} 10. Rc1 {[%emt 0:00:14]} Nbd7 {[%emt 0:00:38]} 11. Qb3 {[%emt 0:02:41]} Nh5 {[%emt 0:03:55]} 12. Bd2 {[%emt 0:02:03]} Nhf6 {[%emt 0:00:08]} 13. Bf4 {[%emt 0:00:22]} Nh5 {[%emt 0:00:07]} 14. Bd2 {[%emt 0:00:06]} Nhf6 {[%emt 0:00:04]} 15. a4 {[%emt 0:04:14]} a5 {[%emt 0:00:44]} 16. Bf4 {[%emt 0:06:02]} Nh5 {[%emt 0:00:32]} 17. Be3 {[%emt 0:01:09]} Bd6 {[%emt 0:00:34]} 18. Ne5 {[%emt 0:01:21]} Ra6 {[%emt 0:09:52]} 19. Nd3 {[%emt 0:03:48]} Nhf6 {[%emt 0:07:51]} 20. Bf4 {[%emt 0:00:16]} Bxf4 {[%emt 0:02:16]} 21. Nxf4 {[%emt 0:00:21]} Qe7 {[%emt 0:00:27]} 22. Rfd1 {[%emt 0:04:10]} Re8 {[%emt 0:02:30]} 23. h4 {[%emt 0:03:23]} Raa8 {[%emt 0:13:01]} 24. Nd3 {[%emt 0:02:10]} Ba6 {[%emt 0:01:37]} 25. Ne5 {[%emt 0:07:17]} Qb4 {[%emt 0:04:16]} 26. Qxb4 {[%emt 0:05:44]} axb4 {[%emt 0:00:02]} 27. Na2 {[%emt 0:00:08]} Nxe5 {[%emt 0:13:14]} 28. dxe5 {[%emt 0:00:11]} Rxe5 {[%emt 0:00:03]} 29. Nxb4 {[%emt 0:00:56]} Bxe2 {[%emt 0:01:32]} 30. Rd2 {[%emt 0:03:48]} c5 {[%emt 0:06:05]} 31. Nxd5 {[%emt 0:01:06]} Nxd5 {[%emt 0:00:04]} 32. Bxd5 {[%emt 0:00:20]} Rae8 {[%emt 0:04:35]} 33. Bc6 {[%emt 0:00:52]} Rc8 {[%emt 0:00:23]} 34. Re1 {[%emt 0:01:39]} g6 {[%emt 0:08:24]} 35. Bf3 {[%emt 0:01:29]} Bxf3 {[%emt 0:00:08]} 36. Rxe5 {[%emt 0:00:07]} Ra8 {[%emt 0:00:07]} 37. Re3 {[%emt 0:01:59]} Bc6 {[%emt 0:01:14]} 38. Rd6 {[%emt 0:00:38]} Bxa4 {[%emt 0:00:18]} 39. Ra3 {[%emt 0:00:49]} 1-0

[Event "XIII Mediterranean Championship 2023"]
[Site "Castell-Platja d Aro"]
[Date "2023.11.10"]
[Round "8.14"]
[White "Rodriguez Redondo, Adhara"]
[Black "Eugene, Floryan"]
[Result "0-1"]
[ECO "C54"]
[WhiteElo "2117"]
[BlackElo "2426"]
[Annotator "RC"]
[PlyCount "84"]
[EventDate "2023.10.26"]
[EventType "swiss"]
[EventCountry "ESP"]
[SourceTitle "playchess.com"]
[Source "ChessBase"]
[SourceQuality "1"]
[TimeControl "5400+30"]

1. e4 {[%emt 0:00:22]} e5 {[%emt 0:00:19]} 2. Nf3 {[%emt 0:00:02]} Nc6 {[%emt 0:00:05]} 3. Bc4 {[%emt 0:00:03]} Bc5 {[%emt 0:00:06]} 4. d3 {[%emt 0:00:50]} Nf6 {[%emt 0:00:10]} 5. O-O {[%emt 0:00:08]} d6 {[%emt 0:00:03]} 6. c3 {[%emt 0:00:18]} h6 {[%emt 0:00:04]} 7. Re1 {[%emt 0:00:55]} a6 {[%emt 0:02:10]} 8. a4 {[%emt 0:01:50]} O-O {[%emt 0:00:19]} 9. h3 {[%emt 0:00:51]} a5 {[%emt 0:04:30]} 10. Be3 {[%emt 0:04:38]} Bxe3 {[%emt 0:09:39]} 11. Rxe3 {[%emt 0:00:09]} d5 {[%emt 0:00:10]} 12. exd5 {[%emt 0:01:25]} Nxd5 {[%emt 0:00:07]} 13. Re1 {[%emt 0:01:43]} Nf4 {[%emt 0:00:13]} 14. Re3 {[%emt 0:22:17]} Qd6 {[%emt 0:06:08]} 15. Qf1 {[%emt 0:03:43]} Be6 {[%emt 0:06:19]} 16. Na3 {[%emt 0:04:47]} Rfe8 {[%emt 0:01:51]} 17. Nb5 {[%emt 0:10:16]} Qd7 {[%emt 0:00:12]} 18. Bxe6 {[%emt 0:08:53]} Rxe6 {[%emt 0:00:14]} 19. g3 {[%emt 0:12:37]} Nd5 {[%emt 0:02:10]} 20. Re2 {[%emt 0:00:11]} Rae8 {[%emt 0:00:14]} 21. Rae1 {[%emt 0:00:49]} Nb6 {[%emt 0:00:44]} 22. Nd2 {[%emt 0:05:35]} Nxa4 {[%emt 0:01:12]} 23. Nb3 {[%emt 0:03:34]} R6e7 {[%emt 0:02:30]} 24. Re4 {[%emt 0:05:31]} Nxb2 {[%emt 0:01:49]} 25. Qe2 {[%emt 0:02:37]} Qxd3 {[%emt 0:01:28]} 26. Nc5 {[%emt 0:00:40]} Qxe2 {[%emt 0:00:12]} 27. R1xe2 {[%emt 0:00:15]} f5 {[%emt 0:01:02]} 28. Rh4 {[%emt 0:00:47]} b6 {[%emt 0:02:28]} 29. Na6 {[%emt 0:00:38]} Nd3 {[%emt 0:00:20]} 30. Naxc7 {[%emt 0:02:04]} Rd8 {[%emt 0:01:56]} 31. Rc4 {[%emt 0:00:47]} Nc5 {[%emt 0:00:37]} 32. Na6 {[%emt 0:00:52]} Rd5 {[%emt 0:00:06]} 33. Nbc7 {[%emt 0:01:03]} Rd1+ {[%emt 0:00:17]} 34. Kg2 {[%emt 0:00:04]} e4 {[%emt 0:01:28]} 35. Nxc5 {[%emt 0:00:44]} bxc5 {[%emt 0:00:03]} 36. Na6 {[%emt 0:00:08]} Ne5 {[%emt 0:00:04]} 37. Rxc5 {[%emt 0:00:23]} Nf3 {[%emt 0:00:06]} 38. h4 {[%emt 0:00:45]} Rg1+ {[%emt 0:00:04]} 39. Kh3 {[%emt 0:00:04]} Rh1+ {[%emt 0:00:03]} 40. Kg2 {[%emt 0:00:11]} Rh2+ {[%emt 0:00:02]} 41. Kf1 {[%emt 0:00:07]} Rd7 {[%emt 0:00:02]} 42. Rb2 {[%emt 0:01:26]} Rd1+ {[%emt 0:00:04]} 0-1